fUST/lending_fUST_20240605
["ID","MTS","AMOUNT","RATE_DAILY","PERIOD"]
[328577536,1717557045203,-500.0,0.00021917,2]
[328577537,1717557045213,-639.63383367,0.00021917,2]
[328577538,1717557045222,-500.0,0.00021917,2]
[328577539,1717557045231,-1089.948075,0.00021917,2]
[328577540,1717557045240,-1089.948075,0.00021917,2]
[328577541,1717557045250,-1089.948075,0.00021917,2]
[328577542,1717557045259,-505.49494174,0.00021917,2]
[328577543,1717557045268,-1089.948075,0.00021917,2]
[328577544,1717557045277,-1089.948075,0.00021917,2]
[328577545,1717557045287,-1089.948075,0.00021917,2]
[328577546,1717557045296,-500.0,0.00021917,2]
[328577547,1717557045305,-1089.948075,0.00021917,2]
[328577548,1717557045315,-151.0,0.00021917,2]
[328577549,1717557045324,-1089.948075,0.00021917,2]
[328577550,1717557045333,-151.0,0.00021917,2]
[328577551,1717557045344,-1089.948075,0.00021917,2]
[328577552,1717557045355,-151.0,0.00021917,2]
[328577553,1717557045364,-151.0,0.00021917,2]
[328577554,1717557045373,-1089.948075,0.00021917,2]
[328577555,1717557045382,-151.0,0.00021917,2]
[328577556,1717557045393,-1089.948075,0.00021917,2]
[328577557,1717557045404,-151.0,0.00021917,2]
[328577558,1717557045413,-151.0,0.00021917,2]
[328577559,1717557045423,-534.03616781,0.00021917,2]
[328577560,1717557045450,-555.91190719,0.00021917,2]
[328577561,1717557045459,-440.48772326,0.00021917,2]
[328577564,1717557104975,636.5613204,0.00016436,2]
[328577566,1717557741752,3599.27075772,0.0001,2]
[328577567,1717557930166,-208.24002311,0.00019813,2]
[328577568,1717557930186,-187.24695787,0.00019814,2]
[328577569,1717557930207,-93.12907858,0.00019816,2]
[328577570,1717558028711,6830.04459277,0.00028,120]
[328577571,1717558036165,-178.62782479,0.00019716,3]
[328577572,1717558049140,-81.5019851,0.00019716,3]
[328577573,1717558049164,-144.3472765,0.00019816,2]
[328577588,1717558232010,-616.98146971,0.00019816,2]
[328577589,1717558232019,-10183.92439655,0.00019816,2]
[328577591,1717558232038,-167.3318946,0.00019942,2]
[328577592,1717558232047,-268.56867849,0.0002,2]
[328577594,1717558232056,-2277.786684,0.0002,10]
[328577595,1717558232065,-151.0,0.0002064,3]
[328577596,1717558232074,-190.06406626,0.000209,2]
[328577597,1717558232083,-2926.87624561,0.00021,2]
[328577598,1717558232092,-151.0,0.00021041,5]
[328577599,1717558232101,-151.0,0.00021443,5]
[328577600,1717558232110,-47909.47567711,0.000216,2]
[328577619,1717558238266,-1427.61938487,0.000216,2]
[328577625,1717558238308,-7341.98241547,0.000216,2]
[328577679,1717558242417,-2091.14007647,0.000216,2]
[328577681,1717558242429,-690.14607,0.000216,2]
[328577682,1717558242441,-1700.09320338,0.000216,2]
[328577683,1717558242454,-11198.57959819,0.000216,2]
[328577692,1717558243313,-43855.72978431,0.000216,2]
[328577707,1717558246353,-636.5613204,0.000216,2]
[328577708,1717558304999,250.0,9.999e-05,2]
[328577709,1717558305021,715.33061231,9.999e-05,2]
[328577710,1717558305042,242.42516988,9.999e-05,2]
[328577711,1717558305062,252.273769,9.999e-05,2]
[328577712,1717558305081,1225.67706592,9.999e-05,2]
[328577713,1717558336681,263.12636468,0.00016421,2]
[328577714,1717558338762,216.1777469,9.999e-05,2]
[328577715,1717558345686,721.83006872,9.999e-05,2]
[328577716,1717558351262,1281.11111819,9.999e-05,2]
[328577717,1717558354683,156.39239377,0.000136,2]
[328577718,1717558369293,156.86510884,9.999e-05,2]
[328577719,1717558369561,837.58667401,9.999e-05,2]
[328577720,1717558371949,1154.95106725,9.999e-05,2]
[328577721,1717558373649,156.81545516,9.999e-05,2]
[328577722,1717558376503,515.23760707,9.999e-05,2]
[328577723,1717558380783,303.06719466,9.999e-05,2]
[328577724,1717558380814,759.42126626,9.999e-05,2]
[328577725,1717558382533,1342.19305774,9.999e-05,2]
[328577726,1717558386840,194.96565459,9.999e-05,2]
[328577727,1717558387183,164.52045217,9.999e-05,2]
[328577728,1717558389414,6899.10943804,9.999e-05,2]
[328577729,1717558395649,524.02495122,9.999e-05,2]
[328577730,1717558403582,154.95351395,9.999e-05,2]
[328577731,1717558404462,552.05664198,9.999e-05,2]
[328577733,1717558661523,208.24002311,9.999e-05,2]
[328577734,1717558678387,187.24695787,9.999e-05,2]
[328577735,1717559059193,252.25223279,9.999e-05,2]
[328577736,1717559149106,-823.09577985,0.00014354,2]
[328577737,1717559230170,-459.97801304,0.00014354,2]
[328577738,1717559246126,-836.74252749,0.00014354,2]
[328577739,1717559246146,-794.77747251,0.00014355,2]
[328577740,1717559347126,-2205.22252749,0.00014355,2]
[328577741,1717559347151,-22757.0430843,0.00014392,2]
[328577742,1717559347173,-5998.4973779,0.00014448,2]
[328577743,1717559347193,-290.040052,0.00014539,2]
[328577744,1717559347214,-11089.38713808,0.00014989,2]
[328577745,1717559347234,-1176.99813678,0.0001499,2]
[328577746,1717559347255,-1099.91705711,0.00015,2]
[328577747,1717559347275,-179.11576389,0.00015904,2]
[328577748,1717559347296,-187.69514185,0.00015904,2]
[328577749,1717559347316,-573.3141167,0.00015904,2]
[328577750,1717559347335,-700.06627792,0.00015905,2]
[328577751,1717559347354,-252.23500693,0.00015905,2]
[328577752,1717559347373,-30.36209562,0.00016421,2]
[328577753,1717559347392,-162.16930636,0.000185,2]
[328577754,1717559347412,-164.536748,0.00019178,2]
[328577755,1717559347434,-167.502415,0.00019178,2]
[328577756,1717559347454,-858.79927208,0.000195,2]
[328577761,1717559358101,242.89446798,0.00015,2]
[328577762,1717559363201,-857.02258913,0.00015,2]
[328577763,1717559391099,255.30217643,0.000189,2]
[328577764,1717559391121,258.58057892,0.000189,2]
[328577766,1717559411219,113354.0710862,0.00028,120]
[328577767,1717559414770,162.93661136,0.00014994,2]
[328577869,1717559438430,-101.30578735,0.000189,2]
[328577870,1717559438439,-303.8100038,0.00019123,2]
[328577871,1717559438448,-290.040052,0.000198,2]
[328577872,1717559438458,-1747.44648943,0.000199,2]
[328577873,1717559438467,-183.66233608,0.00019993,2]
[328577874,1717559438477,-2778.97351872,0.00019999,2]
[328577875,1717559438487,-453.91440249,0.0002,10]
[328577885,1717559443400,-994.36713529,0.0002,10]
[328577886,1717559443412,-225.66640657,0.0002,2]
[328577887,1717559443422,-8289.96646113,0.0002,2]
[328577888,1717559443491,-1286.47292296,0.0002,2]
[328577894,1717559446490,-3312.66379236,0.0002,2]
[328577895,1717559446501,-1354.21950592,0.0002,2]
[328577896,1717559446510,-566.25846715,0.0002,2]
[328577897,1717559446520,-1747.44648941,0.00020374,2]
[328577898,1717559446529,-1210.44881766,0.00020747,2]
[328577899,1717559446539,-261.50771065,0.00020847,2]
[328577900,1717559446548,-500.0,0.00020847,2]
[328577901,1717559446558,-500.0,0.00020847,2]
[328577903,1717559446567,-500.0,0.00020847,2]
[328577905,1717559446576,-500.0,0.00020847,2]
[328577907,1717559446586,-500.0,0.00020847,2]
[328577909,1717559446595,-647.05692188,0.00020847,2]
[328577911,1717559446604,-500.0,0.00020847,2]
[328577913,1717559446613,-500.0,0.00020847,2]
[328577915,1717559446623,-500.0,0.00020847,2]
[328577918,1717559446632,-500.0,0.00020847,2]
[328577919,1717559446642,-500.0,0.00020847,2]
[328577922,1717559446651,-500.0,0.00020847,2]
[328577923,1717559446660,-500.0,0.00020847,2]
[328577926,1717559446670,-500.0,0.00020847,2]
[328577927,1717559446680,-500.0,0.00020847,2]
[328577929,1717559446689,-500.0,0.00020847,2]
[328577931,1717559446698,-500.0,0.00020847,2]
[328577933,1717559446707,-500.0,0.00020847,2]
[328577935,1717559446716,-500.0,0.00020847,2]
[328577937,1717559446726,-500.0,0.00020847,2]
[328577939,1717559446736,-454.42163712,0.00020847,2]
[328577941,1717559446745,-500.0,0.00020847,2]
[328577943,1717559446755,-500.0,0.00020847,2]
[328577945,1717559446765,-500.0,0.00020847,2]
[328577947,1717559446773,-500.0,0.00020847,2]
[328577949,1717559446782,-500.0,0.00020847,2]
[328577951,1717559446792,-500.0,0.00020847,2]
[328577953,1717559446802,-500.0,0.00020847,2]
[328577955,1717559446811,-500.0,0.00020847,2]
[328577957,1717559446821,-500.0,0.00020847,2]
[328577959,1717559446830,-500.0,0.00020847,2]
[328577961,1717559446839,-500.0,0.00020847,2]
[328577963,1717559446849,-500.0,0.00020847,2]
[328577965,1717559446858,-500.0,0.00020847,2]
[328577967,1717559446867,-500.0,0.00020847,2]
[328577969,1717559446877,-500.0,0.00020847,2]
[328577971,1717559446887,-500.0,0.00020847,2]
[328577973,1717559446895,-500.0,0.00020847,2]
[328577975,1717559446905,-500.0,0.00020847,2]
[328577977,1717559446914,-500.0,0.00020847,2]
[328577979,1717559446923,-500.0,0.00020847,2]
[328577981,1717559446932,-500.0,0.00020847,2]
[328577983,1717559446941,-500.0,0.00020847,2]
[328577985,1717559446951,-500.0,0.00020847,2]
[328577987,1717559446960,-500.0,0.00020847,2]
[328577989,1717559446969,-500.0,0.00020847,2]
[328577991,1717559446978,-500.0,0.00020847,2]
[328577993,1717559446987,-500.0,0.00020847,2]
[328577995,1717559446996,-500.0,0.00020847,2]
[328577997,1717559447007,-500.0,0.00020847,2]
[328577999,1717559447016,-1747.44648941,0.00020848,2]
[328578001,1717559447026,-3022.11087445,0.00021,2]
[328578003,1717559447035,-5728.0757,0.00021,5]
[328578005,1717559447045,-292.1581273,0.00021205,2]
[328578007,1717559447054,-306.0,0.00021205,2]
[328578009,1717559447063,-408.8279073,0.00021205,2]
[328578011,1717559447072,-4235.50878984,0.00021208,2]
[328578013,1717559447081,-150.75634065,0.00021228,2]
[328578015,1717559447091,-1747.44648941,0.00021322,2]
[328578018,1717559447105,-663.87,0.00021388,3]
[328578020,1717559447114,-331.94,0.00021388,3]
[328578021,1717559447124,-165.97,0.00021388,3]
[328578023,1717559447134,-497.91,0.00021388,3]
[328578026,1717559447146,-500.0,0.00021397,2]
[328578028,1717559447155,-558.29203873,0.00021397,2]
[328578030,1717559447165,-439.60840354,0.00021397,2]
[328578032,1717559447177,-500.0,0.00021397,2]
[328578033,1717559447186,-488.96249109,0.00021397,2]
[328578035,1717559447195,-242.77903621,0.00021397,2]
[328578037,1717559447204,-500.0,0.00021397,2]
[328578039,1717559447214,-532.89504102,0.00021397,2]
[328578041,1717559447223,-500.0,0.00021397,2]
[328578043,1717559447232,-551.43082507,0.00021397,2]
[328578045,1717559447241,-500.0,0.00021397,2]
[328578047,1717559447252,-500.0,0.00021397,2]
[328578049,1717559447261,-500.0,0.00021397,2]
[328578051,1717559447271,-500.0,0.00021397,2]
[328578053,1717559447281,-500.0,0.00021397,2]
[328578056,1717559447291,-500.0,0.00021397,2]
[328578057,1717559447302,-33682.28507199,0.00021398,2]
[328578060,1717559447312,-11405.0030368,0.000216,2]
[328578062,1717559447321,-151.0,0.00021613,5]
[328578064,1717559447330,-150.81653611,0.00021697,2]
[328578066,1717559447340,-9261.52323989,0.00021717,2]
[328578067,1717559447349,-4247.8797154,0.00021796,2]
[328578069,1717559447359,-2000.0,0.00021796,2]
[328578071,1717559447368,-88888.0,0.00021796,3]
[328578073,1717559447377,-1747.44648941,0.00021796,2]
[328578075,1717559447386,-225.633657,0.00021816,2]
[328578077,1717559447395,-339.622036,0.00021816,2]
[328578079,1717559447405,-339.622036,0.00021816,2]
[328578082,1717559447415,-151.0,0.00021817,2]
[328578084,1717559447424,-151.0,0.00021817,2]
[328578085,1717559447434,-151.0,0.00021817,2]
[328578087,1717559447443,-151.0,0.00021817,2]
[328578089,1717559447453,-152.78536,0.00021817,2]
[328578092,1717559447462,-151.0,0.00021817,2]
[328578093,1717559447471,-156.041208,0.00021817,2]
[328578095,1717559447480,-151.0,0.00021817,2]
[328578097,1717559447490,-177.981977,0.00021817,2]
[328578099,1717559447499,-151.0,0.00021817,2]
[328578101,1717559447508,-151.0,0.00021817,2]
[328578103,1717559447518,-339.622036,0.00021817,2]
[328578105,1717559447527,-339.622036,0.00021817,2]
[328578107,1717559447536,-151.0,0.00021817,2]
[328578109,1717559447546,-151.0,0.00021817,2]
[328578111,1717559447555,-251.2890443,0.00021817,2]
[328578113,1717559447564,-151.0,0.00021817,2]
[328578115,1717559447574,-151.0,0.00021817,2]
[328578117,1717559447583,-151.0,0.00021817,2]
[328578119,1717559447592,-151.0,0.00021817,2]
[328578121,1717559447601,-262.099115,0.00021817,2]
[328578124,1717559447611,-151.0,0.00021817,2]
[328578126,1717559447622,-637.995629,0.00021817,2]
[328578127,1717559447631,-637.995629,0.00021817,2]
[328578129,1717559447641,-913.864112,0.00021817,2]
[328578131,1717559447650,-913.864112,0.00021817,2]
[328578133,1717559447659,-151.0,0.00021817,2]
[328578135,1717559447669,-151.0,0.00021817,2]
[328578137,1717559447678,-151.0,0.00021817,2]
[328578139,1717559447688,-336.192815,0.00021817,2]
[328578142,1717559447700,-336.192815,0.00021817,2]
[328578144,1717559447710,-21029.75521127,0.00021891,7]
[328578187,1717559448115,-9743.07245393,0.00021891,7]
[328578189,1717559448124,-764.37756913,0.00021891,2]
[328578191,1717559448133,-267.04220331,0.00021891,2]
[328578192,1717559448145,-305.26070198,0.00021891,2]
[328578193,1717559448154,-462.38830096,0.00021891,2]
[328578194,1717559448163,-195.36330289,0.00021891,2]
[328578195,1717559448173,-166.29794479,0.00021891,2]
[328578196,1717559448185,-529.47246678,0.00021891,2]
[328578197,1717559448194,-571.68801995,0.00021891,2]
[328578198,1717559448204,-155.07730662,0.00021891,2]
[328578199,1717559448213,-221.50091,0.00021891,2]
[328578200,1717559448222,-2040.27407403,0.00021892,2]
[328578201,1717559448232,-12525.6142798,0.00021893,2]
[328578202,1717559448242,-1025.52253387,0.00021893,2]
[328578203,1717559448251,-660.20558504,0.00021893,2]
[328578204,1717559448260,-319.1723872,0.00021893,2]
[328578205,1717559448270,-10345.17007274,0.00021893,2]
[328578207,1717559448279,-285.07763569,0.00021893,2]
[328578209,1717559448289,-157.42927759,0.00021893,2]
[328578211,1717559448298,-571.74027931,0.00021893,2]
[328578213,1717559448308,-161.25456731,0.00021893,2]
[328578215,1717559448317,-302.61456833,0.00021893,2]
[328578217,1717559448326,-478.1335179,0.00021893,2]
[328578219,1717559448336,-157.29959102,0.00021893,2]
[328578221,1717559448345,-432.35509453,0.00021893,2]
[328578223,1717559448354,-151.0,0.00021893,2]
[328578224,1717559448362,-160.078163,0.00021893,2]
[328578226,1717559448371,-160.078163,0.00021893,2]
[328578228,1717559448380,-152.802796,0.00021893,2]
[328578230,1717559448390,-151.0,0.00021893,2]
[328578232,1717559448401,-151.0,0.00021893,2]
[328578234,1717559448410,-151.0,0.00021893,2]
[328578236,1717559448419,-155.226553,0.00021893,2]
[328578238,1717559448428,-151.0,0.00021893,2]
[328578240,1717559448437,-151.0,0.00021893,2]
[328578252,1717559448539,-151.0,0.00021893,2]
[328578254,1717559448554,-151.0,0.00021893,2]
[328578256,1717559448564,-151.0,0.00021893,2]
[328578258,1717559448574,-339.622036,0.00021893,2]
[328578260,1717559448584,-339.622036,0.00021893,2]
[328578262,1717559448595,-151.0,0.00021893,2]
[328578264,1717559448606,-151.0,0.00021893,2]
[328578266,1717559448616,-151.0,0.00021893,2]
[328578268,1717559448626,-151.0,0.00021893,2]
[328578270,1717559448636,-637.995629,0.00021893,2]
[328578272,1717559448646,-637.995629,0.00021893,2]
[328578274,1717559448656,-913.864112,0.00021893,2]
[328578276,1717559448665,-913.864112,0.00021893,2]
[328578278,1717559448675,-156.818835,0.00021893,2]
[328578280,1717559448685,-151.0,0.00021893,2]
[328578282,1717559448694,-151.0,0.00021893,2]
[328578284,1717559448703,-336.192815,0.00021893,2]
[328578286,1717559448713,-336.192815,0.00021893,2]
[328578288,1717559448723,-221.50091,0.00021893,2]
[328578290,1717559448733,-24690.05317255,0.00021894,7]
[328578292,1717559448743,-495.27579701,0.00021894,2]
[328578294,1717559448754,-2091.46290164,0.00021894,2]
[328578297,1717559448764,-1332.81666693,0.00021894,2]
[328578298,1717559448773,-278.5122752,0.00021894,2]
[328578301,1717559448783,-697.7315899,0.00021894,2]
[328578302,1717559448793,-154.95351395,0.00021894,2]
[328578305,1717559448803,-183.35301255,0.00021894,2]
[328578307,1717559448813,-155.89193003,0.00021894,2]
[328578309,1717559448823,-155.72326743,0.00021894,2]
[328578310,1717559448835,-923.43257561,0.00021894,2]
[328578313,1717559448845,-284.90554158,0.00021894,2]
[328578314,1717559448855,-2647.35651139,0.00021894,2]
[328578316,1717559448865,-272.3727093,0.00021894,2]
[328578319,1717559448874,-216.88401722,0.00021894,2]
[328578320,1717559448883,-723.13331172,0.00021894,2]
[328578322,1717559448893,-1846.41478718,0.00021894,2]
[328578324,1717559448903,-724.99074449,0.00021894,2]
[328578327,1717559448914,-155.17444001,0.00021894,2]
[328578329,1717559448924,-155.45311751,0.00021894,2]
[328578331,1717559448934,-480.64149903,0.00021894,2]
[328578333,1717559448944,-155.16278303,0.00021894,2]
[328578334,1717559448954,-264.98632523,0.00021894,2]
[328578336,1717559448964,-151.0,0.00021894,2]
[328578338,1717559448973,-160.078163,0.00021894,2]
[328578340,1717559448983,-160.078163,0.00021894,2]
[328578343,1717559448993,-151.0,0.00021894,2]
[328578345,1717559449004,-221.50091,0.00021894,2]
[328578347,1717559449014,-1981.65143947,0.00021895,2]
[328578349,1717559449023,-151.0,0.00021895,2]
[328578351,1717559449033,-151.0,0.00021895,2]
[328578352,1717559449044,-209.590694,0.00021895,2]
[328578355,1717559449055,-151.0,0.00021895,2]
[328578356,1717559449066,-151.0,0.00021895,2]
[328578358,1717559449076,-153.87496,0.00021895,2]
[328578360,1717559449086,-151.0,0.00021895,2]
[328578362,1717559449099,-151.0,0.00021895,2]
[328578364,1717559449109,-276.041069,0.00021895,2]
[328578366,1717559449119,-151.0,0.00021895,2]
[328578368,1717559449130,-637.995629,0.00021895,2]
[328578370,1717559449140,-637.995629,0.00021895,2]
[328578373,1717559449151,-913.864112,0.00021895,2]
[328578375,1717559449161,-913.864112,0.00021895,2]
[328578377,1717559449173,-151.0,0.00021895,2]
[328578378,1717559449183,-291.448889,0.00021895,2]
[328578380,1717559449192,-336.192815,0.00021895,2]
[328578382,1717559449202,-336.192815,0.00021895,2]
[328578384,1717559449211,-19289.36611798,0.00021896,2]
[328578386,1717559449221,-59519.31929914,0.00021896,2]
[328578388,1717559449230,-1901.95956528,0.00021896,2]
[328578390,1717559449240,-10476.6863812,0.00021896,2]
[328578392,1717559449250,-3174.31661083,0.00021896,2]
[328578394,1717559449260,-151.0,0.00021896,2]
[328578396,1717559449270,-230.409404,0.00021896,2]
[328578398,1717559449279,-245.61112,0.00021896,2]
[328578400,1717559449290,-160.078163,0.00021896,2]
[328578402,1717559449299,-160.078163,0.00021896,2]
[328578404,1717559449309,-151.0,0.00021896,2]
[328578405,1717559449318,-151.0,0.00021896,2]
[328578406,1717559449327,-151.0,0.00021896,2]
[328578408,1717559449337,-151.0,0.00021896,2]
[328578410,1717559449346,-154.336235,0.00021896,2]
[328578412,1717559449356,-339.622036,0.00021896,2]
[328578414,1717559449366,-339.622036,0.00021896,2]
[328578416,1717559449376,-339.622036,0.00021896,2]
[328578418,1717559449385,-339.622036,0.00021896,2]
[328578420,1717559449395,-151.0,0.00021896,2]
[328578422,1717559449408,-258.715889,0.00021896,2]
[328578424,1717559449418,-151.0,0.00021896,2]
[328578426,1717559449428,-637.995629,0.00021896,2]
[328578428,1717559449438,-637.995629,0.00021896,2]
[328578430,1717559449447,-913.864112,0.00021896,2]
[328578432,1717559449458,-913.864112,0.00021896,2]
[328578434,1717559449468,-151.0,0.00021896,2]
[328578436,1717559449479,-336.192815,0.00021896,2]
[328578438,1717559449488,-336.192815,0.00021896,2]
[328578440,1717559449498,-221.50091,0.00021896,2]
[328578442,1717559449508,-21713.10598836,0.00021898,2]
[328578443,1717559449519,-160.078163,0.00021898,2]
[328578445,1717559449529,-160.078163,0.00021898,2]
[328578447,1717559449539,-151.0,0.00021898,2]
[328578449,1717559449549,-151.0,0.00021898,2]
[328578451,1717559449559,-151.0,0.00021898,2]
[328578453,1717559449568,-151.0,0.00021898,2]
[328578455,1717559449577,-339.622036,0.00021898,2]
[328578457,1717559449587,-339.622036,0.00021898,2]
[328578459,1717559449596,-151.0,0.00021898,2]
[328578461,1717559449605,-151.0,0.00021898,2]
[328578463,1717559449614,-637.995629,0.00021898,2]
[328578465,1717559449623,-637.995629,0.00021898,2]
[328578467,1717559449631,-913.864112,0.00021898,2]
[328578469,1717559449640,-913.864112,0.00021898,2]
[328578470,1717559449649,-151.0,0.00021898,2]
[328578472,1717559449658,-336.192815,0.00021898,2]
[328578474,1717559449667,-336.192815,0.00021898,2]
[328578476,1717559449676,-221.50091,0.00021898,2]
[328578478,1717559449685,-270.0,0.000219,2]
[328578480,1717559449694,-160.0,0.000219,2]
[328578482,1717559449703,-4919.949278,0.000219,2]
[328578484,1717559449712,-150.479233,0.000219,2]
[328578486,1717559449722,-1008.927157,0.000219,2]
[328578488,1717559449731,-461.8019537,0.00021917,2]
[328578490,1717559449741,-508.91968106,0.00021917,2]
[328578492,1717559449750,-333.797441,0.00021917,2]
[328578494,1717559449761,-528.14052701,0.00021917,2]
[328578496,1717559449771,-521.43136031,0.00021917,2]
[328578498,1717559449780,-491.17879604,0.00021917,2]
[328578500,1717559449789,-155.0,0.00021917,2]
[328578502,1717559449798,-500.0,0.00021917,2]
[328578504,1717559449807,-500.0,0.00021917,2]
[328578506,1717559449817,-500.0,0.00021917,2]
[328578508,1717559449825,-508.50124746,0.00021917,2]
[328578510,1717559449835,-500.0,0.00021917,2]
[328578512,1717559449844,-500.0,0.00021917,2]
[328578513,1717559449853,-500.0,0.00021917,2]
[328578515,1717559449862,-280.26452452,0.00021917,2]
[328578517,1717559449872,-502.05280683,0.00021917,2]
[328578519,1717559449881,-502.9585261,0.00021917,2]
[328578521,1717559449890,-503.24218243,0.00021917,2]
[328578523,1717559449899,-163.14754344,0.00021917,2]
[328578525,1717559449909,-500.70834382,0.00021917,2]
[328578527,1717559449918,-502.06977509,0.00021917,2]
[328578529,1717559449927,-507.02824942,0.00021917,2]
[328578531,1717559449937,-500.0,0.00021917,2]
[328578533,1717559449946,-501.72295822,0.00021917,2]
[328578535,1717559449955,-507.11271249,0.00021917,2]
[328578537,1717559449965,-502.65865158,0.00021917,2]
[328578539,1717559449974,-501.11987559,0.00021917,2]
[328578541,1717559449983,-504.6707676,0.00021917,2]
[328578542,1717559449993,-503.11763604,0.00021917,2]
[328578544,1717559450003,-296.26667142,0.00021917,2]
[328579443,1717560359137,-271.95773382,0.00019999,2]
[328579444,1717560359158,-189.11025606,0.0002,2]
[328579445,1717560404155,-272.69169764,0.0002,2]
[328579446,1717560404175,-1582.51184498,0.0002,2]
[328579447,1717560425162,-162.93661136,0.00019999,2]
[328579448,1717560454096,-140.87882395,0.00019999,2]
[328579449,1717560454117,-1064.66117605,0.0002,2]
[328579456,1717560597335,178.62782479,0.000189,2]
[328579457,1717560597356,207.79612825,0.000189,2]
[328579493,1717560632479,-23.7017421,0.000189,2]
[328579495,1717560632489,-155.27700761,0.00019998,2]
[328579497,1717560632498,-303.8993979,0.00019998,2]
[328579499,1717560632508,-181.0254006,0.00019999,2]
[328579501,1717560632517,-215.74461764,0.00019999,2]
[328579503,1717560632526,-29661.59761583,0.0002,2]
[328579505,1717560632536,-155.00748206,0.0002,2]
[328579507,1717560632549,-1323.42366357,0.0002,2]
[328579509,1717560632559,-3425.4168227,0.0002,2]
[328579511,1717560632568,-1059.14271547,0.000209,2]
[328579513,1717560632577,-3987.57363517,0.00021,2]
[328579515,1717560632586,-893.76358542,0.00021498,7]
[328579666,1717560641598,-641.80489149,0.00021498,7]
[328579668,1717560641607,-691.39512184,0.00021783,2]
[328579873,1717560643684,-1483.09044919,0.00021783,2]
[328579934,1717561112797,-13494.11913605,0.00021918,7]
[328579935,1717561113802,6370.39458318,0.00021915,7]
[328579936,1717561127504,-10908.28799418,0.00021915,7]
[328579937,1717561172678,8639.34128868,0.00021917,7]
[328579938,1717561274421,411.29938372,9.999e-05,2]
[328579939,1717561543149,-346.5309103,0.00016435,2]
[328579940,1717561543172,-139.33034229,0.00016435,2]
[328579941,1717561633101,-153.01628096,0.00016435,2]
[328579942,1717561633121,-93.49629676,0.00019718,3]
[328579943,1717561638084,-85.13152803,0.00019718,3]
[328579944,1717561638104,-167.14224097,0.00019818,2]
[328579945,1717561641111,-188.37159211,0.00019818,2]
[328579946,1717561641130,-167.502415,0.00020526,2]
[328579947,1717561641149,-3285.28743323,0.0002066,2]
[328579948,1717561654123,-178.62929222,0.0002066,2]
[328579953,1717561817170,150.0,0.00016433,2]
[328579954,1717561817190,113.12636468,0.00016433,2]
[328580023,1717561838686,-237.00922205,0.00019818,2]
[328580024,1717561838695,-928.5013845,0.0002066,2]
[328580025,1717561838707,-1998.88621859,0.0002066,2]
[328580033,1717561842356,-9971.55086246,0.0002066,2]
[328580034,1717561842366,-1487.4585966,0.0002078,2]
[328580035,1717561842376,-4235.50878984,0.00021448,2]
[328580036,1717561842386,-153.0,0.00021452,2]
[328580037,1717561842395,-153.0,0.000215,2]
[328580038,1717561842405,-153.0,0.00021552,2]
[328580039,1717561842415,-151.0,0.00021669,5]
[328580040,1717561842425,-152.76341288,0.00021697,2]
[328580041,1717561842436,-172.4475907,0.000217,2]
[328580042,1717561842446,-153.0,0.000217,2]
[328580043,1717561842455,-975.79783004,0.00021783,2]
[328580059,1717561843824,-310.67509292,0.00021783,2]
[328580060,1717561843834,-362.56503239,0.00021794,2]
[328580061,1717561843844,-153.0,0.000218,2]
[328580062,1717561843853,-477.55853149,0.00021813,2]
[328580063,1717561843870,-477.96039897,0.00021813,2]
[328580064,1717561843880,-178.62782479,0.00021814,2]
[328580065,1717561843890,-690.9734969,0.00021888,2]
[328580066,1717561843900,-151.0,0.000219,2]
[328580067,1717561843911,-270.0,0.000219,2]
[328580068,1717561843925,-150.0,0.000219,2]
[328580069,1717561843935,-306.57,0.00021907,3]
[328580070,1717561843945,-224.11,0.00021907,3]